bitfinex-derivatives/quotes_SOLF0:USTF0_20241218
["timestamp","ask_amount","ask_price","bid_price","bid_amount"]
[1734514293288,2.3027,217.18,217.15,7.18200229]
[1734514293791,2.3027,217.18,217.14,2.303]
[1734514293984,2.3027,217.17,217.13,9.48510229]
[1734514294585,2.3027,217.17,217.14,2.303]
[1734514300188,7.18200229,217.17,217.09,3.1164]
[1734514300389,7.18200229,217.15,217.09,3.1164]
[1734514300585,2.14,217.14,217.09,3.1164]
[1734514301182,2.14,217.14,217.04,1.5224]
[1734514301389,2.3032,217.12,217.05,1.5712]
[1734514301587,2.3032,217.12,217.08,7.18200229]
[1734514302088,2.3032,217.12,217.05,1.5712]
[1734514302089,2.3033,217.11,217.07,2.3036]
[1734514302295,2.3033,217.11,217.06,7.18200229]
[1734514303388,2.3033,217.11,217.08,2.3036]
[1734514303797,2.3033,217.11,217.06,7.18200229]
[1734514303995,7.18200229,217.13,217.07,2.3037]
[1734514304391,2.3034,217.1,217.07,2.3037]
[1734514304691,4.4434,217.1,217.07,2.3037]
[1734514306195,4.4434,217.1,217.05,1.5712]
[1734514306196,2.3036,217.09,217.05,1.5712]
[1734514306392,2.14,217.1,217.05,1.5712]
[1734514306788,2.14,217.1,216.85,25.42860749]
[1734514306789,7.18200229,217.09,216.96,2.14]
[1734514306997,7.18200229,217.09,216.98,6.52936754]
[1734514307194,2.3039,217.06,217.01,7.18200229]
[1734514307392,2.3039,217.06,216.98,7.76491631]
[1734514307393,2.14,217.05,217.03,7.18200229]
[1734514308687,4.4436,217.09,217.03,7.18200229]
[1734514308893,4.4436,217.09,217.05,7.18200229]
[1734514309191,4.4436,217.09,217.05,9.48590229]
[1734514313005,7.18200229,217.07,216.98,3.0186]
[1734514313203,7.18200229,217.07,217.0,7.18200229]
[1734514313602,7.18200229,217.07,217.01,7.05654733]
[1734514313603,2.304,217.05,217.01,7.05654733]
[1734514313803,2.14,217.04,217.02,4.75224733]
[1734514313998,2.14,217.04,217.01,2.3043]
[1734514314604,2.14,217.04,217.02,4.75228545]
[1734514314902,2.14,217.04,217.01,2.3043]
[1734514315404,2.14,217.04,217.02,4.75231201]
[1734514315613,2.14,217.04,216.98,8.63500229]
[1734514315904,2.3044,217.02,216.99,4.75283101]
[1734514316100,2.14,217.04,216.98,1.453]
[1734514316506,2.14,217.04,216.98,8.63500229]
[1734514317109,2.3044,217.01,216.99,4.75463378]
[1734514317310,2.3044,217.01,216.98,8.63500229]
[1734514320207,2.14,217.04,216.98,8.63500229]
[1734514320414,2.3045,217.0,216.98,8.63500229]
[1734514322407,4.4445,217.0,216.98,10.93970229]
[1734514323508,4.4445,217.0,216.98,8.63500229]
[1734514325309,2.14,217.0,216.98,8.63500229]
[1734514325811,4.4442,217.03,217.01,2.3044]
[1734514326003,4.4442,217.03,217.01,9.48640229]
[1734514326004,2.14,217.03,217.01,9.48640229]
[1734514328311,4.4442,217.03,217.01,7.18200229]
[1734514331019,2.14,217.03,217.01,9.48640229]
[1734514331218,2.14,217.03,217.01,7.18200229]
[1734514331516,1.5261,217.19,217.06,2.3038]
[1734514331517,2.3036,217.09,217.06,2.3038]
[1734514331717,2.3036,217.09,217.06,9.48580229]
[1734514331718,2.14,217.08,217.06,9.48580229]
[1734514332109,2.14,217.11,217.06,7.18200229]
[1734514332314,2.14,217.11,217.08,7.18200229]
[1734514333216,2.14,217.11,217.09,2.3035]
[1734514333519,2.14,217.11,217.08,7.17465434]
[1734514334115,2.14,217.11,217.08,9.47825434]
[1734514334917,2.14,217.11,217.09,2.3034]
[1734514335915,2.14,217.12,217.09,2.3034]
[1734514337020,2.14,217.12,217.08,7.17465434]
[1734514337225,2.14,217.12,216.99,2.14]
[1734514337521,2.14,217.12,217.06,7.17465434]
[1734514337923,2.3034,217.11,217.07,2.3037]
[1734514338124,2.3034,217.11,217.08,7.17465434]
[1734514338723,2.3032,217.12,217.08,9.47825434]
[1734514340025,5.52003186,217.15,217.08,9.47825434]
[1734514340225,2.3033,217.11,217.08,9.47825434]
[1734514340425,195.1094285,217.26,217.1,7.17465434]
[1734514340722,2.3028,217.16,217.13,7.17465434]
[1734514341424,2.3022,217.22,217.15,9.47745434]
[1734514341725,2.14,217.21,217.17,7.17465434]
[1734514341922,2.14,217.21,217.18,7.16817601]
[1734514343524,4.4423,217.21,217.18,7.16817601]
[1734514344424,4.4423,217.21,217.18,9.47077601]
[1734514345624,4.4423,217.21,217.18,7.16817601]
[1734514345826,2.3024,217.2,217.14,1.5383]
[1734514346030,7.16817601,217.2,217.14,1.5383]
[1734514346328,2.14,217.21,217.14,1.5383]
[1734514346527,7.16817601,217.2,217.14,1.5383]
[1734514346729,2.3028,217.16,217.14,1.5383]
[1734514346922,4.4428,217.16,217.14,1.5383]
[1734514347124,2.14,217.16,217.14,1.5383]
[1734514349732,2.14,217.19,217.15,9.47107601]
[1734514351435,2.3026,217.18,217.15,9.47107601]
[1734514352033,2.3027,217.17,217.14,3.8413]
[1734514352425,2.14,217.19,217.14,1.5383]
[1734514352630,7.16817601,217.18,217.14,1.5383]
[1734514353240,2.14,217.19,217.14,8.70647601]
[1734514353837,2.3027,217.17,217.14,11.00937601]
[1734514354938,4.4426,217.18,217.14,11.00937601]
[1734514356340,4.4426,217.18,217.15,2.3029]
[1734514357439,5.60834492,217.24,217.16,7.16817601]
[1734514357639,7.16817601,217.26,217.19,7.16817601]
[1734514357842,2.14,217.25,217.19,7.16817601]
[1734514358347,2.3021,217.23,217.19,9.47067601]
[1734514359742,2.3022,217.22,217.19,9.47067601]
[1734514359943,4.4422,217.22,217.19,9.47067601]
[1734514360143,2.3023,217.21,217.18,2.3026]
[1734514361245,4.4422,217.22,217.18,2.3026]
[1734514361446,2.14,217.22,217.18,2.3026]
[1734514362447,2.3023,217.21,217.18,2.3026]
[1734514362642,7.16817601,217.2,216.96,117.00120187]
[1734514362851,7.16817601,217.2,217.12,7.16817601]
[1734514363044,2.3028,217.16,217.12,7.16817601]
[1734514363250,4.4428,217.16,217.13,2.3031]
[1734514363942,4.4428,217.16,217.14,7.16817601]
[1734514364649,2.14,217.16,217.14,7.16817601]
[1734514364849,2.3029,217.15,217.14,7.16817601]
[1734514365049,2.14,217.16,217.14,7.16817601]
[1734514365452,4.4428,217.16,217.14,7.16817601]
[1734514365751,4.4428,217.16,217.14,9.47117601]
[1734514366442,2.14,217.16,217.14,9.47117601]
[1734514367042,5.53531504,217.25,217.14,7.16817601]
[1734514367247,2.14,217.24,217.18,7.16817601]
[1734514367949,2.3022,217.22,217.18,9.47067601]
[1734514368146,2.3022,217.22,217.18,7.16817601]
[1734514369847,2.14,217.24,217.18,9.47077601]
[1734514370153,2.3022,217.22,217.18,9.47077601]
[1734514371144,2.3023,217.21,217.18,9.47077601]
[1734514374153,9.30817601,217.24,217.18,7.16817601]
[1734514374154,2.3024,217.2,217.18,7.16817601]
[1734514375653,7.16817601,217.24,217.15,1.5433]
[1734514375957,7.16817601,217.22,217.15,1.5433]
[1734514376155,2.3026,217.18,217.15,3.8462]
[1734514376552,2.3026,217.18,217.15,1.5433]
[1734514380464,2.3026,217.18,217.15,3.8462]
[1734514382058,2.3026,217.18,217.15,2.3029]
[1734514385669,2.3026,217.18,217.16,4.75727715]
[1734514385968,2.3026,217.18,217.15,2.3029]
[1734514386370,2.3026,217.18,217.16,4.75729181]
[1734514386577,2.3026,217.18,217.15,2.3029]
[1734514386967,2.3026,217.18,217.16,4.75796718]
[1734514387165,9.30817601,217.19,217.11,7.16817601]
[1734514387372,9.30817601,217.19,217.12,4.75842468]
[1734514387567,9.30817601,217.19,217.13,4.75842468]
[1734514387763,2.303,217.14,217.13,4.75842468]
[1734514387968,2.303,217.14,217.11,9.47137601]
[1734514388172,2.14,217.15,217.13,7.16817601]
[1734514388674,2.14,217.15,217.14,4.75818664]
[1734514389364,1.5098,217.24,217.14,4.75818664]
[1734514389569,1.5098,217.24,217.16,7.16817601]
[1734514389570,2.14,217.23,217.16,7.16817601]
[1734514390273,2.14,217.23,217.18,7.16817601]
[1734514390873,2.3023,217.22,217.18,9.47077601]
[1734514392372,4.4423,217.22,217.18,9.47077601]
[1734514393274,2.3023,217.21,217.18,9.47077601]
[1734514394373,2.3023,217.21,217.18,7.16817601]
[1734514394774,2.3026,217.18,217.13,7.16817601]
[1734514394978,4.4426,217.18,217.14,7.06086831]
[1734514395272,2.14,217.18,217.15,7.16817601]
[1734514395778,2.14,217.18,217.15,9.47107601]
[1734514395976,4.4426,217.18,217.15,9.47107601]
[1734514397078,4.4426,217.18,217.15,2.3029]
[1734514397275,2.14,217.18,217.16,2.3027]
[1734514398580,4.4426,217.18,217.15,7.16817601]
[1734514398777,4.4426,217.18,217.15,9.47107601]
[1734514399280,4.4426,217.18,217.15,9.47293374]
[1734514401678,4.4426,217.18,217.16,2.3028]
[1734514404783,2.14,217.18,217.16,2.3028]
[1734514406377,2.14,217.18,217.15,7.17003374]
[1734514406585,2.14,217.27,217.17,7.17003374]
[1734514406785,2.14,217.27,217.22,7.17003374]
[1734514406984,4.4417,217.27,217.24,2.3019]
[1734514407381,2.14,217.27,217.24,7.17003374]
[1734514407882,2.14,217.27,217.22,7.17003374]
[1734514408684,2.14,217.27,217.23,2.302]
[1734514408685,4.4417,217.27,217.23,2.302]
[1734514412186,2.3018,217.26,217.23,2.302]
[1734514416085,4.4418,217.27,217.23,2.302]
[1734514416589,2.3014,217.3,217.26,7.17003374]
[1734514416789,2.12,217.34,217.28,7.17003374]
[1734514416987,66.73244102,217.37,217.3,7.17003374]
[1734514417187,2.12,217.36,217.3,7.17003374]
[1734514417583,2.12,217.36,217.3,9.47143374]
[1734514418388,2.3012,217.33,217.3,7.17003374]
[1734514418582,2.12,217.36,217.3,7.17003374]
[1734514418983,2.3012,217.33,217.29,2.3015]
[1734514419682,2.3012,217.32,217.29,2.3015]
[1734514420683,2.12,217.32,217.25,7.17003374]
[1734514421483,2.3015,217.3,217.27,2.3017]
[1734514421684,7.17003374,217.29,217.18,6.6694]
[1734514421894,2.12,217.28,217.23,7.17003374]
[1734514423287,2.12,217.28,217.18,6.6694]
[1734514423591,2.12,217.28,217.22,7.17003374]
[1734514424187,2.12,217.28,217.22,9.47223374]
[1734514424993,2.12,217.28,217.22,7.17003374]
[1734514426089,2.3021,217.25,217.22,7.17003374]
[1734514427981,2.3021,217.24,217.22,7.17003374]
[1734514428794,2.12,217.24,217.2,7.17003374]
[1734514428994,2.12,217.24,217.18,11.71943374]
[1734514429696,2.3024,217.22,217.19,2.3026]
[1734514429891,2.12,217.24,217.18,11.71943374]
[1734514430386,2.3023,217.23,217.18,4.5494]
[1734514430595,2.12,217.24,217.18,11.71943374]
[1734514431191,2.3025,217.2,217.18,4.5494]
[1734514431392,2.12,217.24,217.18,8.74083374]
[1734514431598,2.3023,217.22,217.18,1.5708]
[1734514431806,2.3023,217.22,217.19,7.17003374]
[1734514432806,2.3023,217.22,217.18,1.5708]
[1734514433105,2.3023,217.22,217.19,7.17003374]
[1734514434606,2.12,217.24,217.19,7.17003374]
[1734514434801,2.12,217.24,217.18,1.5708]
[1734514435006,2.12,217.24,217.18,8.74083374]
[1734514435209,7.17003374,217.23,217.18,1.5708]
[1734514435506,2.3026,217.19,217.18,8.74083374]
[1734514435707,2.12,217.24,217.18,8.74083374]
[1734514436902,9.29003374,217.24,217.18,1.5708]
[1734514438512,2.3025,217.21,217.18,1.5708]
[1734514439204,2.3025,217.21,217.19,7.17003374]
[1734514441206,2.3025,217.21,217.18,1.5708]
[1734514441708,2.3026,217.19,217.18,1.5708]
[1734514441910,2.12,217.2,217.18,1.5708]
[1734514442205,2.12,217.19,217.14,7.17003374]
[1734514442410,2.3029,217.17,217.14,7.17003374]
[1734514443513,2.3027,217.18,217.14,9.47313374]
[1734514443712,2.12,217.19,217.16,7.17003374]
[1734514443910,2.12,217.19,217.18,7.17003374]
[1734514444115,2.3024,217.22,217.18,9.47273374]
[1734514444312,2.3024,217.22,217.2,7.17003374]
[1734514444716,59.57671462,217.3,217.2,7.17003374]
[1734514444915,2.12,217.29,217.24,7.17003374]
[1734514445215,59.57671462,217.3,217.24,7.17003374]
[1734514445519,2.3017,217.28,217.24,9.47213374]
[1734514446807,4.4217,217.28,217.24,9.47213374]
[1734514447315,2.12,217.28,217.26,7.17003374]
[1734514449219,2.12,217.28,217.26,9.47183374]
[1734514449407,2.12,217.28,217.2,3.0523]
[1734514449608,2.12,217.28,217.26,7.17003374]
[1734514449815,2.3013,217.31,217.26,7.17003374]
[1734514450119,2.12,217.3,217.26,7.17003374]
[1734514450617,2.12,217.3,217.27,2.3017]
[1734514450816,2.12,217.3,217.2,3.0523]
[1734514451014,2.12,217.3,217.26,7.17003374]
[1734514451918,4.4215,217.3,217.26,9.47183374]
[1734514455118,2.3015,217.3,217.26,9.47183374]
[1734514455421,2.12,217.29,217.26,9.47183374]
[1734514456115,2.12,217.29,217.26,7.17003374]
[1734514460222,4.4215,217.29,217.26,7.17003374]
[1734514461922,2.3021,217.24,217.13,2.12]
[1734514462123,2.3021,217.24,217.2,7.17003374]
[1734514462324,2.12,217.25,217.22,7.17003374]
[1734514462626,7.17003374,217.28,217.24,7.17003374]
[1734514462627,2.12,217.28,217.24,7.17003374]
[1734514463021,2.12,217.28,217.25,2.3019]
[1734514464021,2.12,217.28,217.24,7.17003374]
[1734514464219,2.12,217.28,217.26,9.47183374]
[1734514466925,2.3016,217.29,217.26,9.47183374]
[1734514467928,2.3015,217.29,217.26,9.47183374]
[1734514470825,250.06293318,217.37,217.2,1.4895]
[1734514470826,2.12,217.33,217.28,7.17003374]
[1734514471022,190.5058285,217.39,217.31,7.17003374]
[1734514471224,19.2308234,217.38,217.31,7.17003374]
[1734514471527,17.1108234,217.38,217.32,2.3012]
[1734514471731,2.12,217.37,217.32,2.3012]
[1734514472428,2.3009,217.35,217.32,2.3012]
[1734514476930,2.3009,217.35,217.31,9.47133374]
[1734514477834,2.3009,217.35,217.32,2.3012]
[1734514478935,2.12,217.37,217.34,2.3009]
[1734514479235,2.12,217.37,217.35,7.17003374]
[1734514479736,2.3007,217.38,217.35,7.17003374]
[1734514479934,4.4207,217.38,217.35,7.17003374]
[1734514480234,2.12,217.38,217.36,2.3007]
[1734514481334,2.3004,217.4,217.35,7.17003374]
[1734514481531,2.12,217.39,217.35,9.47093374]
[1734514482537,4.4205,217.39,217.35,9.47093374]
[1734514487139,2.3006,217.38,217.35,2.3009]
[1734514487345,9.47063374,217.38,217.34,2.301]
[1734514487538,7.17003374,217.38,217.34,2.301]
[1734514488444,7.17003374,217.36,217.3,2.3014]
[1734514488742,2.12,217.38,217.34,7.17003374]
[1734514488948,2.3007,217.37,217.34,9.47093374]
[1734514492147,2.12,217.38,217.35,2.3008]
[1734514493746,2.12,217.38,217.34,7.17003374]
[1734514493946,2.12,217.38,217.36,2.3008]
[1734514495439,2.12,217.38,217.36,9.47083374]
[1734514496048,2.12,217.38,217.36,7.17003374]
[1734514497850,2.12,217.38,217.28,7.52866468]
[1734514498051,2.12,217.38,217.33,7.17003374]
[1734514499149,2.3007,217.37,217.34,2.3009]
[1734514499754,2.3007,217.37,217.35,2.3009]
[1734514502453,2.3007,217.37,217.33,7.17003374]
[1734514502454,2.3008,217.36,217.34,2.301]
[1734514502752,2.12,217.38,217.33,7.17003374]
[1734514503747,2.3007,217.37,217.34,2.301]
[1734514507152,2.3007,217.37,217.34,9.47103374]
[1734514507755,2.3007,217.37,217.34,2.301]
[1734514510455,2.3007,217.37,217.35,2.3009]
[1734514510853,2.3007,217.37,217.28,5.40866468]
[1734514511059,2.3007,217.37,217.32,7.17003374]
[1734514511453,2.3007,217.37,217.28,5.40866468]
[1734514511656,2.3007,217.37,217.32,7.17003374]
[1734514511853,7.17003374,217.33,217.26,7.17003374]
[1734514512156,2.12,217.32,217.26,7.17003374]
[1734514512358,4.4213,217.32,217.28,7.17003374]
[1734514513458,4.4213,217.32,217.29,2.3015]
[1734514515356,2.12,217.32,217.29,2.3015]
[1734514518454,2.12,217.32,217.25,4.5597]
[1734514518658,2.12,217.32,217.27,9.47173374]
[1734514519364,2.12,217.32,217.27,2.3017]
[1734514519669,7.17003374,217.29,217.2,5.46623714]
[1734514519963,2.12,217.28,217.21,7.17003374]
[1734514520359,2.302,217.25,217.21,9.47243374]
[1734514520563,2.12,217.24,217.21,9.47243374]
[1734514520865,2.12,217.24,217.21,7.17003374]
[1734514521564,2.12,217.24,217.22,2.3022]
[1734514521757,2.12,217.24,217.22,9.47223374]
[1734514522359,1.5685,217.38,217.22,7.17003374]
[1734514522557,7.17003374,217.32,217.25,7.17003374]
[1734514522762,7.17003374,217.32,217.27,7.17003374]
[1734514523066,2.12,217.31,217.28,2.3015]
[1734514523265,2.12,217.3,217.27,7.17003374]
[1734514523470,2.12,217.3,217.29,2.3015]
[1734514525361,2.3011,217.33,217.29,2.3015]
[1734514525362,250.03936378,217.46,217.29,7.17003374]
[1734514525564,2.12,217.44,217.36,7.17003374]
[1734514525768,7.17003374,217.42,217.34,7.17003374]
[1734514525963,2.3003,217.41,217.34,7.17003374]
[1734514526159,2.3003,217.41,217.35,2.3008]
[1734514527863,2.3003,217.41,217.34,7.17003374]
[1734514528065,2.12,217.4,217.36,2.3008]
[1734514529469,9.29003374,217.4,217.36,2.3008]
[1734514532567,7.17003374,217.38,217.3,11.57953374]
[1734514533769,7.17003374,217.38,217.32,2.3012]
[1734514535671,2.12,217.4,217.3,1.528]
[1734514535672,7.17003374,217.34,217.3,1.528]
[1734514536477,9.47103374,217.34,217.3,1.528]
[1734514538072,2.12,217.35,217.32,9.47123374]
[1734514539873,4.4208,217.36,217.32,9.47123374]
[1734514541873,2.12,217.36,217.34,2.301]
[1734514542173,2.12,217.39,217.34,7.17003374]
[1734514542370,2.12,217.39,217.36,7.17003374]
[1734514543875,7.66101408,217.43,217.38,7.17003374]
[1734514544075,7.66101408,217.43,217.4,7.17003374]
[1734514544474,2.3002,217.42,217.4,7.17003374]
[1734514545677,59.53353528,217.46,217.4,7.17003374]
[1734514545976,2.12,217.45,217.42,7.17003374]
[1734514546571,2.12,217.45,217.42,9.47013374]
[1734514546771,2.12,217.45,217.42,7.17003374]
[1734514547476,4.4198,217.45,217.4,7.17003374]
[1734514548176,9.29003374,217.45,217.31,3.0018]
[1734514548375,7.17003374,217.43,217.36,7.17003374]
[1734514549075,7.17003374,217.43,217.38,7.17003374]
[1734514549477,2.3002,217.41,217.38,7.17003374]
[1734514550178,2.3001,217.42,217.38,7.17003374]
[1734514551075,2.3001,217.42,217.37,2.3005]
[1734514551482,2.3001,217.42,217.37,9.47053374]
[1734514552782,2.3002,217.41,217.37,7.17003374]
[1734514553680,7.17003374,217.43,217.37,7.17003374]
[1734514553881,2.3001,217.42,217.38,2.3005]
[1734514554476,2.3002,217.41,217.37,9.47063374]
[1734514555782,4.4202,217.41,217.37,9.47063374]
[1734514556782,4.4202,217.41,217.37,7.17003374]
[1734514556985,4.4202,217.41,217.38,2.3005]
[1734514557184,2.12,217.41,217.38,2.3005]
[1734514562491,2.12,217.41,217.39,2.3004]
[1734514565389,2.12,217.41,217.31,5.1218]
[1734514565390,2.12,217.41,217.37,2.3006]
[1734514565585,7.17003374,217.39,217.32,7.17003374]
[1734514565991,9.47063374,217.39,217.32,7.17003374]
[1734514566189,9.47063374,217.39,217.34,7.17003374]
[1734514566892,2.3006,217.39,217.36,2.3008]
[1734514570496,7.17003374,217.39,217.31,3.0018]
[1734514570690,7.17003374,217.39,217.31,10.17183374]
[1734514571091,2.301,217.35,217.32,2.3011]
[1734514571491,2.12,217.36,217.31,10.17183374]
[1734514571692,2.301,217.34,217.31,12.47313374]
[1734514571895,2.12,217.36,217.3,1.528]
[1734514571896,7.17003374,217.35,217.3,1.528]
[1734514572593,2.3011,217.34,217.31,2.3012]
[1734514578505,2.3017,217.28,217.24,3.7592]
[1734514578703,2.3017,217.28,217.24,10.92923374]
[1734514579504,2.12,217.31,217.26,7.17003374]
[1734514579802,2.12,217.31,217.28,7.17003374]
[1734514580498,4.4213,217.31,217.28,7.17003374]
[1734514580703,2.12,217.31,217.28,7.17003374]
[1734514581203,2.12,217.31,217.28,9.47163374]
[1734514582103,2.12,217.31,217.28,2.3016]
[1734514584297,4.4213,217.31,217.28,2.3016]
[1734514584806,2.3016,217.28,217.25,1.5837]
[1734514584996,2.12,217.27,217.25,1.5837]
[1734514585706,4.4219,217.27,217.25,1.5837]
[1734514585998,9.29003374,217.27,217.25,1.5837]
[1734514587301,2.3019,217.26,217.25,1.5837]
[1734514587604,2.12,217.27,217.25,1.5837]
[1734514588301,18.4408,217.41,217.25,8.75373374]
[1734514588606,7.17003374,217.36,217.28,7.17003374]
[1734514588806,4.6008,217.41,217.28,7.17003374]
[1734514589009,2.301,217.35,217.3,9.47143374]
[1734514589306,2.12,217.34,217.3,9.47143374]
[1734514590198,7.17003374,217.36,217.3,7.17003374]
[1734514590399,7.17003374,217.31,216.98,6.30915493]
[1734514590604,6.0,217.29,216.97,7.17003374]
[1734514590802,2.3026,217.19,216.97,7.17003374]
[1734514590999,2.3,217.18,216.99,7.17003374]
[1734514591198,5.57238944,217.07,217.03,7.17003374]
[1734514591508,2.3,217.16,217.05,7.17003374]
[1734514591809,5.42041015,217.13,217.07,7.17003374]
[1734514592699,5.42041015,217.13,217.06,7.17003374]
[1734514593510,2.3,217.16,217.1,7.17003374]
[1734514593806,2.3025,217.2,217.1,7.17003374]
[1734514593807,11.77253374,217.2,217.1,7.17003374]
[1734514594008,4.6025,217.2,217.09,2.3]
[1734514594809,5.58415807,217.16,217.09,2.3]
[1734514595615,5.58415807,217.16,217.09,4.6036]
[1734514597103,5.58415807,217.16,217.04,3.1125]
[1734514597305,5.58415807,217.16,217.04,5.4125]
[1734514597602,11.20701018,217.14,217.04,3.1125]
[1734514597808,11.20701018,217.14,217.04,5.4125]
[1734514598006,11.20701018,217.11,217.04,3.1125]
[1734514598304,11.20701018,217.11,216.96,11.20701018]
[1734514598305,2.3,217.1,216.97,2.3]
[1734514598503,2.3,217.1,216.97,6.9127]
[1734514599706,2.3037,217.09,216.97,6.9127]
[1734514600404,2.3,217.1,216.99,11.20701018]
[1734514603011,2.3,217.1,217.06,2.304]
[1734514603212,2.3034,217.12,217.06,2.304]
[1734514605011,13.50701018,217.14,216.99,11.20701018]
[1734514605210,2.3036,217.1,217.04,2.3041]
[1734514605713,2.3037,217.09,217.04,2.3041]
[1734514605912,13.50701018,217.14,217.04,2.3041]
[1734514606211,2.3034,217.11,217.05,2.3041]
[1734514606611,13.50701018,217.14,217.01,2.3]
[1734514606812,2.3,217.14,217.02,11.20701018]
[1734514607512,2.3,217.14,217.1,2.3035]
[1734514608312,2.3,217.14,217.07,3.1008]
[1734514608612,2.3031,217.14,217.09,2.3037]
[1734514612416,2.3031,217.14,217.07,3.1008]
[1734514612417,2.3033,217.13,217.08,2.3038]
[1734514612711,13.83,217.29,217.07,3.1008]
[1734514612911,11.20701018,217.21,217.08,1.4398]
[1734514613107,2.3,217.2,217.08,1.4398]
[1734514614408,2.3028,217.17,217.11,2.3034]
[1734514614612,2.3028,217.17,217.08,1.4398]
[1734514615008,2.3028,217.17,217.12,2.3032]
[1734514615413,5.65609365,217.17,217.08,1.4398]
[1734514615711,5.65609365,217.17,217.12,2.3033]
[1734514616317,2.303,217.16,217.11,2.3034]
[1734514617013,2.3,217.2,217.08,3.7398]
[1734514617218,2.3026,217.19,217.08,3.7398]
[1734514617419,2.3026,217.19,217.09,11.20701018]
[1734514617612,2.3027,217.18,217.08,3.7398]
[1734514617915,2.3027,217.18,217.08,14.94681018]
[1734514618118,7.8647743,217.18,217.08,14.94681018]
[1734514618316,5.5620743,217.18,217.08,14.94681018]
[1734514618514,2.3028,217.17,217.08,3.7398]
[1734514618820,16.76908448,217.18,217.08,1.4398]
[1734514619020,2.303,217.15,217.08,1.4398]
[1734514619214,16.76908448,217.18,217.09,2.3036]
[1734514619518,2.3,217.16,217.08,1.4398]
[1734514619812,2.3,217.16,217.09,2.3036]
[1734514620720,2.3034,217.12,217.09,2.3036]
[1734514620918,11.20701018,217.15,217.07,5.4047]
[1734514621622,11.20701018,217.15,217.07,3.1008]
[1734514621812,11.20701018,217.15,217.08,2.3038]
[1734514622013,11.20701018,217.15,217.07,3.1008]
[1734514622215,2.3035,217.11,217.07,3.1008]
[1734514623319,2.3035,217.11,217.07,5.4046]
[1734514625220,2.3038,217.08,217.05,2.3041]
[1734514625525,2.3038,217.08,217.0,2.3]
[1734514625821,2.3039,217.07,217.04,2.3041]
[1734514626025,2.3039,217.07,217.0,2.3]
[1734514626527,2.3039,217.07,217.04,2.3041]
[1734514627428,2.3,217.11,217.0,11.20701018]
[1734514627727,190.3164097,217.12,217.03,11.20701018]
[1734514627928,192.6164097,217.15,217.04,2.3]
[1734514628129,2.3032,217.14,217.04,2.3]
[1734514628330,2.3032,217.14,217.05,1.5586]
[1734514628525,2.3032,217.14,217.05,3.8586]
[1734514630528,2.3032,217.14,217.11,2.3034]
[1734514631627,2.3,217.15,217.1,2.3035]
[1734514631834,2.3033,217.13,217.1,2.3035]
[1734514632129,2.3,217.15,217.08,2.3037]
[1734514632333,2.3034,217.12,217.08,2.3037]
[1734514632829,2.3034,217.12,217.09,2.3036]
[1734514638031,2.3037,217.09,217.02,11.20701018]
[1734514639433,4.6036,217.1,217.02,11.20701018]
[1734514640037,2.3,217.1,217.07,2.3039]
[1734514640238,2.3037,217.09,217.07,2.3039]
[1734514641135,2.3,217.1,217.02,11.20701018]
[1734514641536,4.6036,217.1,217.07,2.3038]
[1734514641733,2.3,217.14,217.02,11.20701018]
[1734514641936,2.3,217.14,217.09,7.17358453]
[1734514642937,12.73565883,217.18,217.09,7.17358453]
[1734514643140,64.11471756,217.19,217.11,7.17358453]
[1734514643340,29.58994815,217.19,217.13,7.17358453]
[1734514643637,2.3026,217.19,217.15,2.3029]
[1734514644141,59.60927757,217.2,217.11,2.3]
[1734514644335,192.6164097,217.23,217.12,11.2058593]
[1734514644536,2.3,217.23,217.12,11.2058593]
[1734514644732,2.3024,217.22,217.12,11.2058593]
[1734514645439,34.50781463,217.25,217.12,11.2058593]
[1734514645639,2.302,217.25,217.15,11.2058593]